Workbook

Sheet Disclaimer

Sheet Title sheet

Sheet SMART

Sheet User guide
B16: Style | D16: Design | F16: Comment
B18: Header 1 | D18: Header1
B20: Header 2 | D20: Header2
B22: Input | D22: 100 | F22: A user driven input
B24: Demo | D24: 100 | F24: Values needed to demonstrate the principle in a complete model would be dynamically coded or set-up differently
B26: Empty_cell | F26: A cell that is left intentionally blank to avoid the risk of error
B28: Off-Sheet | D28: 100 | F28: A link to another worksheet to minimise the number of inter-worksheet references (slow and risky)
B30: Total | F30: The sum of elements above, including sub-totals
B32: Unit / Info | D32: USD millions | F32: Explanatory text showing helpful information and the units/dimensions of the calculations
B34: Line Summary | D34: 100 | F34: The SUM() of everything to the right
B36: Table Header | D36: Qtr | F36: Header of a table or of an off-sheet reference
B38: Flag | D38: 1 | F38: Binary flag - set up as conditional formatting rather than a 'Style'
B40: Balance | F40: The closing balance of a control account

Sheet Inputs
A1: Tutorial: Debt sculpting without VBA
A2: Inputs
A4: Inputs specific to the tutorial
A5: Debt
A6: Debt term (max) | B6: Years | C6: 3
A8: Year | C8: =YEAR(C19) -> 2013 | D8: =C8+1 -> 2014 | E8: =D8+1 -> 2015 | F8: =E8+1 -> 2016 | G8: =F8+1 -> 2017
A9: Base rate | B9: % p.a. | C9: 0.045 | D9: 0.05 | E9: 0.055 | F9: 0.04 | G9: 0.0375
A10: Margin | B10: % p.a. | C10: 0.02 | D10: 0.0175 | E10: 0.016 | F10: 0.015 | G10: 0.015
A11: All-in rate | B11: % p.a. | C11: =SUM(C9:C10) -> 0.065 | D11: =SUM(D9:D10) -> 0.0675 | E11: 0.071 | F11: 0.055 | G11: 0.0525
A13: Debt funding (% of construction) | B13: % | C13: 0.7
A15: Target DSCR | B15: x | C15: 1.5
A17: Inputs to support demonstration
A18: Timing
A19: Model start date | B19: Date | C19: 2013-12-31
A21: Constants
A22: Days in year | B22: Days | C22: 365
A23: Months per year | B23: Months | C23: 12
A24: Months per quarter | B24: Months | C24: 3

Sheet Calculations
A1: Tutorial: Debt sculpting without VBA
A2: Calculations
A3: Period start | H3: =G4+1 -> 2014-01-01 | I3: =H4+1 -> 2014-04-01 | J3: 2014-07-01 | K3: 2014-10-01 | L3: 2015-01-01 | M3: 2015-04-01 | N3: 2015-07-01 | O3: 2015-10-01 | P3: 2016-01-01 | Q3: 2016-04-01 | R3: 2016-07-01 | S3: 2016-10-01 | T3: 2017-01-01 | U3: 2017-04-01 | V3: 2017-07-01 | W3: 2017-10-01 | X3: 2018-01-01 | Y3: 2018-04-01 | Z3: 2018-07-01 | AA3: 2018-10-01 | AB3: 2019-01-01 | AC3: 2019-04-01 | AD3: 2019-07-01 | AE3: 2019-10-01 | AF3: 2020-01-01 | AG3: 2020-04-01 | AH3: 2020-07-01 | AI3: 2020-10-01 | AJ3: 2021-01-01 | AK3: 2021-04-01 | AL3: 2021-07-01 | AM3: 2021-10-01 | AN3: 2022-01-01 | AO3: 2022-04-01 | AP3: 2022-07-01 | AQ3: 2022-10-01
A4: Period end | G4: =Inputs!C19 -> 2013-12-31 | H4: =EOMONTH(H3,Mths_in_Qtr-1) -> 2014-03-31 | I4: 2014-06-30 | J4: 2014-09-30 | K4: 2014-12-31 | L4: 2015-03-31 | M4: 2015-06-30 | N4: 2015-09-30 | O4: 2015-12-31 | P4: 2016-03-31 | Q4: 2016-06-30 | R4: 2016-09-30 | S4: 2016-12-31 | T4: 2017-03-31 | U4: 2017-06-30 | V4: 2017-09-30 | W4: 2017-12-31 | X4: 2018-03-31 | Y4: 2018-06-30 | Z4: 2018-09-30 | AA4: 2018-12-31 | AB4: 2019-03-31 | AC4: 2019-06-30 | AD4: 2019-09-30 | AE4: 2019-12-31 | AF4: 2020-03-31 | AG4: 2020-06-30 | AH4: 2020-09-30 | AI4: 2020-12-31 | AJ4: 2021-03-31 | AK4: 2021-06-30 | AL4: 2021-09-30 | AM4: 2021-12-31 | AN4: 2022-03-31 | AO4: 2022-06-30 | AP4: 2022-09-30 | AQ4: 2022-12-31
A5: Construction | H5: 1 | I5: 1 | J5: 1 | K5: 1
A6: Operations | L6: 1 | M6: 1 | N6: 1 | O6: 1 | P6: 1 | Q6: 1 | R6: 1 | S6: 1 | T6: 1 | U6: 1 | V6: 1 | W6: 1 | X6: 1 | Y6: 1 | Z6: 1 | AA6: 1 | AB6: 1 | AC6: 1 | AD6: 1 | AE6: 1 | AF6: 1 | AG6: 1 | AH6: 1 | AI6: 1 | AJ6: 1 | AK6: 1 | AL6: 1 | AM6: 1 | AN6: 1 | AO6: 1 | AP6: 1 | AQ6: 1
A8: Counters & flags
A9: Days in period | B9: Days | H9: =H4-H3+1 -> 90 | I9: 91 | J9: 92 | K9: 92 | L9: 90 | M9: 91 | N9: 92 | O9: 92 | P9: 91 | Q9: 91 | R9: 92 | S9: 92 | T9: 90 | U9: 91 | V9: 92 | W9: 92 | X9: 90 | Y9: 91 | Z9: 92 | AA9: 92 | AB9: 90 | AC9: 91 | AD9: 92 | AE9: 92 | AF9: 91 | AG9: 91 | AH9: 92 | AI9: 92 | AJ9: 90 | AK9: 91 | AL9: 92 | AM9: 92 | AN9: 90 | AO9: 91 | AP9: 92 | AQ9: 92
A10: Calendar year | B10: Year | C10: Year(s) | D10: Maturity | H10: =YEAR(H3) -> 2014 | I10: 2014 | J10: 2014 | K10: 2014 | L10: 2015 | M10: 2015 | N10: 2015 | O10: 2015 | P10: 2016 | Q10: 2016 | R10: 2016 | S10: 2016 | T10: 2017 | U10: 2017 | V10: 2017 | W10: 2017 | X10: 2018 | Y10: 2018 | Z10: 2018 | AA10: 2018 | AB10: 2019 | AC10: 2019 | AD10: 2019 | AE10: 2019 | AF10: 2020 | AG10: 2020 | AH10: 2020 | AI10: 2020 | AJ10: 2021 | AK10: 2021 | AL10: 2021 | AM10: 2021 | AN10: 2022 | AO10: 2022 | AP10: 2022 | AQ10: 2022
A11: Debt term | B11: [1,0] | C11: =Inputs!C6 -> 3 | D11: =EOMONTH(G12,C11*Mths_in_Yr-1) -> 2017-12-31 | H11: =IF(AND(H3>=$G$12,H4<=$D$11),1,0) -> 0 | I11: 0 | J11: 0 | K11: 0 | L11: 1 | M11: 1 | N11: 1 | O11: 1 | P11: 1 | Q11: 1 | R11: 1 | S11: 1 | T11: 1 | U11: 1 | V11: 1 | W11: 1 | X11: 0 | Y11: 0 | Z11: 0 | AA11: 0 | AB11: 0 | AC11: 0 | AD11: 0 | AE11: 0 | AF11: 0 | AG11: 0 | AH11: 0 | AI11: 0 | AJ11: 0 | AK11: 0 | AL11: 0 | AM11: 0 | AN11: 0 | AO11: 0 | AP11: 0 | AQ11: 0
A12: Start of operations | B12: [1,0] | G12: =SUMPRODUCT(H12:AQ12,H3:AQ3) -> 2015-01-01 | H12: =IF(AND(G5=1,H6=1),1,0) -> 0 | I12: 0 | J12: 0 | K12: 0 | L12: 1 | M12: 0 | N12: 0 | O12: 0 | P12: 0 | Q12: 0 | R12: 0 | S12: 0 | T12: 0 | U12: 0 | V12: 0 | W12: 0 | X12: 0 | Y12: 0 | Z12: 0 | AA12: 0 | AB12: 0 | AC12: 0 | AD12: 0 | AE12: 0 | AF12: 0 | AG12: 0 | AH12: 0 | AI12: 0 | AJ12: 0 | AK12: 0 | AL12: 0 | AM12: 0 | AN12: 0 | AO12: 0 | AP12: 0 | AQ12: 0
A14: Extracts
A15: Construction | B15: USD M | G15: =SUM(H15:AQ15) -> -24.0247 | H15: -6.0769 | I15: -5.4739 | J15: -5.4739 | K15: -7 | L15: 0 | M15: 0 | N15: 0 | O15: 0 | P15: 0 | Q15: 0 | R15: 0 | S15: 0 | T15: 0 | U15: 0 | V15: 0 | W15: 0 | X15: 0 | Y15: 0 | Z15: 0 | AA15: 0 | AB15: 0 | AC15: 0 | AD15: 0 | AE15: 0 | AF15: 0 | AG15: 0 | AH15: 0 | AI15: 0 | AJ15: 0 | AK15: 0 | AL15: 0 | AM15: 0 | AN15: 0 | AO15: 0 | AP15: 0 | AQ15: 0
A16: CFADS | B16: USD M | G16: =SUM(H16:AQ16) -> 91.26650731 | H16: 0 | I16: 0 | J16: 0 | K16: 0 | L16: 2.73695 | M16: 2.7403 | N16: 2.75638 | O16: 2.772125 | P16: 2.78653 | Q16: 2.804285 | R16: 2.817685 | S16: 2.836445 | T16: 2.85 | U16: 2.75 | V16: 2.547984331 | W16: 2.548326408 | X16: 2.586531514 | Y16: 2.15 | Z16: 2.67664217 | AA16: 2.689727688 | AB16: 2.734921738 | AC16: 2.780719751 | AD16: 2.801939705 | AE16: 2.852325756 | AF16: 2.888892784 | AG16: 2.92324401 | AH16: 2.935803816 | AI16: 2.981868307 | AJ16: 3.031294717 | AK16: 3.047687343 | AL16: 3.090990151 | AM16: 3.128031181 | AN16: 3.183412383 | AO16: 3.228555982 | AP16: 3.279506302 | AQ16: 3.327401274
A18: Debt
A19: Account
A20: Balance b/f | B20: USD M | H20: =G23 -> 0 | I20: =H23 -> 4.25383 | J20: 8.08556 | K20: 11.91729 | L20: 16.81729 | M20: 15.27951138 | N20: 13.71618999 | O20: 12.11780633 | P20: 10.48105105 | Q20: 8.764208841 | R20: 7.012459027 | S20: 5.229278386 | T20: 3.409363576 | U20: 1.552651467 | V20: 0 | W20: 0 | X20: 0 | Y20: 0 | Z20: 0 | AA20: 0 | AB20: 0 | AC20: 0 | AD20: 0 | AE20: 0 | AF20: 0 | AG20: 0 | AH20: 0 | AI20: 0 | AJ20: 0 | AK20: 0 | AL20: 0 | AM20: 0 | AN20: 0 | AO20: 0 | AP20: 0 | AQ20: 0
A21: Drawdowns | B21: USD M | C21: =Inputs!C13 -> 0.7 | G21: =SUM(H21:AQ21) -> 16.81729 | H21: =-H15*$C$21 -> 4.25383 | I21: =-I15*$C$21 -> 3.83173 | J21: 3.83173 | K21: 4.9 | L21: 0 | M21: 0 | N21: 0 | O21: 0 | P21: 0 | Q21: 0 | R21: 0 | S21: 0 | T21: 0 | U21: 0 | V21: 0 | W21: 0 | X21: 0 | Y21: 0 | Z21: 0 | AA21: 0 | AB21: 0 | AC21: 0 | AD21: 0 | AE21: 0 | AF21: 0 | AG21: 0 | AH21: 0 | AI21: 0 | AJ21: 0 | AK21: 0 | AL21: 0 | AM21: 0 | AN21: 0 | AO21: 0 | AP21: 0 | AQ21: 0
A22: Principal repayment | B22: USD M | G22: =SUM(H22:AQ22) -> -16.81729 | H22: =-H44 -> 0 | I22: =-I44 -> 0 | J22: 0 | K22: 0 | L22: -1.537778622 | M22: -1.563321385 | N22: -1.598383662 | O22: -1.636755283 | P22: -1.716842206 | Q22: -1.751749814 | R22: -1.783180642 | S22: -1.81991481 | T22: -1.856712109 | U22: -1.552651467 | V22: 0 | W22: 0 | X22: 0 | Y22: 0 | Z22: 0 | AA22: 0 | AB22: 0 | AC22: 0 | AD22: 0 | AE22: 0 | AF22: 0 | AG22: 0 | AH22: 0 | AI22: 0 | AJ22: 0 | AK22: 0 | AL22: 0 | AM22: 0 | AN22: 0 | AO22: 0 | AP22: 0 | AQ22: 0
A23: Balance c/f | B23: USD M | H23: =SUM(H20:H22) -> 4.25383 | I23: =SUM(I20:I22) -> 8.08556 | J23: 11.91729 | K23: 16.81729 | L23: 15.27951138 | M23: 13.71618999 | N23: 12.11780633 | O23: 10.48105105 | P23: 8.764208841 | Q23: 7.012459027 | R23: 5.229278386 | S23: 3.409363576 | T23: 1.552651467 | U23: 0 | V23: 0 | W23: 0 | X23: 0 | Y23: 0 | Z23: 0 | AA23: 0 | AB23: 0 | AC23: 0 | AD23: 0 | AE23: 0 | AF23: 0 | AG23: 0 | AH23: 0 | AI23: 0 | AJ23: 0 | AK23: 0 | AL23: 0 | AM23: 0 | AN23: 0 | AO23: 0 | AP23: 0 | AQ23: 0
A25: Interest
A26: All-in rate | B26: % p.a. | H26: =LOOKUP(H10,Inputs!$C$8:$G$8,Inputs!$C$11:$G$11)*H11 -> 0 | I26: =LOOKUP(I10,Inputs!$C$8:$G$8,Inputs!$C$11:$G$11)*I11 -> 0 | J26: =LOOKUP(J10,Inputs!$C$8:$G$8,Inputs!$C$11:$G$11)*J11 -> 0 | K26: =LOOKUP(K10,Inputs!$C$8:$G$8,Inputs!$C$11:$G$11)*K11 -> 0 | L26: =LOOKUP(L10,Inputs!$C$8:$G$8,Inputs!$C$11:$G$11)*L11 -> 0.071 | M26: =LOOKUP(M10,Inputs!$C$8:$G$8,Inputs!$C$11:$G$11)*M11 -> 0.071 | N26: =LOOKUP(N10,Inputs!$C$8:$G$8,Inputs!$C$11:$G$11)*N11 -> 0.071 | O26: =LOOKUP(O10,Inputs!$C$8:$G$8,Inputs!$C$11:$G$11)*O11 -> 0.071 | P26: =LOOKUP(P10,Inputs!$C$8:$G$8,Inputs!$C$11:$G$11)*P11 -> 0.055 | Q26: =LOOKUP(Q10,Inputs!$C$8:$G$8,Inputs!$C$11:$G$11)*Q11 -> 0.055 | R26: =LOOKUP(R10,Inputs!$C$8:$G$8,Inputs!$C$11:$G$11)*R11 -> 0.055 | S26: =LOOKUP(S10,Inputs!$C$8:$G$8,Inputs!$C$11:$G$11)*S11 -> 0.055 | T26: =LOOKUP(T10,Inputs!$C$8:$G$8,Inputs!$C$11:$G$11)*T11 -> 0.0525 | U26: =LOOKUP(U10,Inputs!$C$8:$G$8,Inputs!$C$11:$G$11)*U11 -> 0.0525 | V26: =LOOKUP(V10,Inputs!$C$8:$G$8,Inputs!$C$11:$G$11)*V11 -> 0.0525 | W26: =LOOKUP(W10,Inputs!$C$8:$G$8,Inputs!$C$11:$G$11)*W11 -> 0.0525 | X26: =LOOKUP(X10,Inputs!$C$8:$G$8,Inputs!$C$11:$G$11)*X11 -> 0 | Y26: =LOOKUP(Y10,Inputs!$C$8:$G$8,Inputs!$C$11:$G$11)*Y11 -> 0 | Z26: =LOOKUP(Z10,Inputs!$C$8:$G$8,Inputs!$C$11:$G$11)*Z11 -> 0 | AA26: =LOOKUP(AA10,Inputs!$C$8:$G$8,Inputs!$C$11:$G$11)*AA11 -> 0 | AB26: =LOOKUP(AB10,Inputs!$C$8:$G$8,Inputs!$C$11:$G$11)*AB11 -> 0 | AC26: =LOOKUP(AC10,Inputs!$C$8:$G$8,Inputs!$C$11:$G$11)*AC11 -> 0 | AD26: =LOOKUP(AD10,Inputs!$C$8:$G$8,Inputs!$C$11:$G$11)*AD11 -> 0 | AE26: =LOOKUP(AE10,Inputs!$C$8:$G$8,Inputs!$C$11:$G$11)*AE11 -> 0 | AF26: =LOOKUP(AF10,Inputs!$C$8:$G$8,Inputs!$C$11:$G$11)*AF11 -> 0 | AG26: =LOOKUP(AG10,Inputs!$C$8:$G$8,Inputs!$C$11:$G$11)*AG11 -> 0 | AH26: =LOOKUP(AH10,Inputs!$C$8:$G$8,Inputs!$C$11:$G$11)*AH11 -> 0 | AI26: =LOOKUP(AI10,Inputs!$C$8:$G$8,Inputs!$C$11:$G$11)*AI11 -> 0 | AJ26: =LOOKUP(AJ10,Inputs!$C$8:$G$8,Inputs!$C$11:$G$11)*AJ11 -> 0 | AK26: =LOOKUP(AK10,Inputs!$C$8:$G$8,Inputs!$C$11:$G$11)*AK11 -> 0 | AL26: =LOOKUP(AL10,Inputs!$C$8:$G$8,Inputs!$C$11:$G$11)*AL11 -> 0 | AM26: =LOOKUP(AM10,Inputs!$C$8:$G$8,Inputs!$C$11:$G$11)*AM11 -> 0 | AN26: =LOOKUP(AN10,Inputs!$C$8:$G$8,Inputs!$C$11:$G$11)*AN11 -> 0 | AO26: =LOOKUP(AO10,Inputs!$C$8:$G$8,Inputs!$C$11:$G$11)*AO11 -> 0 | AP26: =LOOKUP(AP10,Inputs!$C$8:$G$8,Inputs!$C$11:$G$11)*AP11 -> 0 | AQ26: =LOOKUP(AQ10,Inputs!$C$8:$G$8,Inputs!$C$11:$G$11)*AQ11 -> 0
A27: All-in rate | B27: % p.q. | H27: =(1+H26)^(H9/Days_in_Yr)-1 -> 0 | I27: 0 | J27: 0 | K27: 0 | L27: 0.01705713054 | M27: 0.01724827943 | N27: 0.01743946424 | O27: 0.01743946424 | P27: 0.01343800921 | Q27: 0.01343800921 | R27: 0.01358667832 | S27: 0.01358667832 | T27: 0.01269676588 | U27: 0.01283874284 | V27: 0.0129807397 | W27: 0.0129807397 | X27: 0 | Y27: 0 | Z27: 0 | AA27: 0 | AB27: 0 | AC27: 0 | AD27: 0 | AE27: 0 | AF27: 0 | AG27: 0 | AH27: 0 | AI27: 0 | AJ27: 0 | AK27: 0 | AL27: 0 | AM27: 0 | AN27: 0 | AO27: 0 | AP27: 0 | AQ27: 0
A28: Interest during operations | B28: USD M | G28: =SUM(H28:AQ28) -> 1.48909556 | H28: =H20*H27 -> 0 | I28: =I20*I27 -> 0 | J28: 0 | K28: 0 | L28: 0.2868547109 | M28: 0.2635452818 | N28: 0.2392030049 | O28: 0.2113280502 | P28: 0.1408444605 | Q28: 0.1177735191 | R28: 0.09527602506 | S28: 0.07104852329 | T28: 0.04328789111 | U28: 0.0199340929 | V28: 0 | W28: 0 | X28: 0 | Y28: 0 | Z28: 0 | AA28: 0 | AB28: 0 | AC28: 0 | AD28: 0 | AE28: 0 | AF28: 0 | AG28: 0 | AH28: 0 | AI28: 0 | AJ28: 0 | AK28: 0 | AL28: 0 | AM28: 0 | AN28: 0 | AO28: 0 | AP28: 0 | AQ28: 0
A30: Calculation of target repayment
A31: Debt outstanding | B31: [1,0] | H31: =IF(AND(H20>0,H11=1),1,0) -> 0 | I31: 0 | J31: 0 | K31: 0 | L31: 1 | M31: 1 | N31: 1 | O31: 1 | P31: 1 | Q31: 1 | R31: 1 | S31: 1 | T31: 1 | U31: 1 | V31: 0 | W31: 0 | X31: 0 | Y31: 0 | Z31: 0 | AA31: 0 | AB31: 0 | AC31: 0 | AD31: 0 | AE31: 0 | AF31: 0 | AG31: 0 | AH31: 0 | AI31: 0 | AJ31: 0 | AK31: 0 | AL31: 0 | AM31: 0 | AN31: 0 | AO31: 0 | AP31: 0 | AQ31: 0
A32: CFADS | B32: USD M | G32: =SUM(H32:AQ32) -> 91.26650731 | H32: =H16 -> 0 | I32: 0 | J32: 0 | K32: 0 | L32: 2.73695 | M32: 2.7403 | N32: 2.75638 | O32: 2.772125 | P32: 2.78653 | Q32: 2.804285 | R32: 2.817685 | S32: 2.836445 | T32: 2.85 | U32: 2.75 | V32: 2.547984331 | W32: 2.548326408 | X32: 2.586531514 | Y32: 2.15 | Z32: 2.67664217 | AA32: 2.689727688 | AB32: 2.734921738 | AC32: 2.780719751 | AD32: 2.801939705 | AE32: 2.852325756 | AF32: 2.888892784 | AG32: 2.92324401 | AH32: 2.935803816 | AI32: 2.981868307 | AJ32: 3.031294717 | AK32: 3.047687343 | AL32: 3.090990151 | AM32: 3.128031181 | AN32: 3.183412383 | AO32: 3.228555982 | AP32: 3.279506302 | AQ32: 3.327401274
A33: Target debt sculpting ratio | B33: x | C33: =Inputs!C15 -> 1.5 | H33: =H31*$C$33 -> 0 | I33: 0 | J33: 0 | K33: 0 | L33: 1.5 | M33: 1.5 | N33: 1.5 | O33: 1.5 | P33: 1.5 | Q33: 1.5 | R33: 1.5 | S33: 1.5 | T33: 1.5 | U33: 1.5 | V33: 0 | W33: 0 | X33: 0 | Y33: 0 | Z33: 0 | AA33: 0 | AB33: 0 | AC33: 0 | AD33: 0 | AE33: 0 | AF33: 0 | AG33: 0 | AH33: 0 | AI33: 0 | AJ33: 0 | AK33: 0 | AL33: 0 | AM33: 0 | AN33: 0 | AO33: 0 | AP33: 0 | AQ33: 0
A34: Target debt service | B34: USD M | G34: =SUM(H34:AQ34) -> 18.56713333 | H34: =IF(H31=0,0,H32/H33) -> 0 | I34: 0 | J34: 0 | K34: 0 | L34: 1.824633333 | M34: 1.826866667 | N34: 1.837586667 | O34: 1.848083333 | P34: 1.857686667 | Q34: 1.869523333 | R34: 1.878456667 | S34: 1.890963333 | T34: 1.9 | U34: 1.833333333 | V34: 0 | W34: 0 | X34: 0 | Y34: 0 | Z34: 0 | AA34: 0 | AB34: 0 | AC34: 0 | AD34: 0 | AE34: 0 | AF34: 0 | AG34: 0 | AH34: 0 | AI34: 0 | AJ34: 0 | AK34: 0 | AL34: 0 | AM34: 0 | AN34: 0 | AO34: 0 | AP34: 0 | AQ34: 0
A35: Less: interest | B35: USD M | G35: =SUM(H35:AQ35) -> -1.48909556 | H35: =-H28 -> 0 | I35: 0 | J35: 0 | K35: 0 | L35: -0.2868547109 | M35: -0.2635452818 | N35: -0.2392030049 | O35: -0.2113280502 | P35: -0.1408444605 | Q35: -0.1177735191 | R35: -0.09527602506 | S35: -0.07104852329 | T35: -0.04328789111 | U35: -0.0199340929 | V35: 0 | W35: 0 | X35: 0 | Y35: 0 | Z35: 0 | AA35: 0 | AB35: 0 | AC35: 0 | AD35: 0 | AE35: 0 | AF35: 0 | AG35: 0 | AH35: 0 | AI35: 0 | AJ35: 0 | AK35: 0 | AL35: 0 | AM35: 0 | AN35: 0 | AO35: 0 | AP35: 0 | AQ35: 0
A36: Principal repayment (target) | B36: USD M | G36: =SUM(H36:AQ36) -> 17.07803777 | H36: =SUM(H31:H35) -> 0 | I36: =SUM(I34:I35) -> 0 | J36: 0 | K36: 0 | L36: 1.537778622 | M36: 1.563321385 | N36: 1.598383662 | O36: 1.636755283 | P36: 1.716842206 | Q36: 1.751749814 | R36: 1.783180642 | S36: 1.81991481 | T36: 1.856712109 | U36: 1.81339924 | V36: 0 | W36: 0 | X36: 0 | Y36: 0 | Z36: 0 | AA36: 0 | AB36: 0 | AC36: 0 | AD36: 0 | AE36: 0 | AF36: 0 | AG36: 0 | AH36: 0 | AI36: 0 | AJ36: 0 | AK36: 0 | AL36: 0 | AM36: 0 | AN36: 0 | AO36: 0 | AP36: 0 | AQ36: 0
A38: Calculation of actual repayment
A39: CFADS | B39: USD M | G39: =SUM(H39:AQ39) -> 27.8507 | H39: =H16*H31 -> 0 | I39: 0 | J39: 0 | K39: 0 | L39: 2.73695 | M39: 2.7403 | N39: 2.75638 | O39: 2.772125 | P39: 2.78653 | Q39: 2.804285 | R39: 2.817685 | S39: 2.836445 | T39: 2.85 | U39: 2.75 | V39: 0 | W39: 0 | X39: 0 | Y39: 0 | Z39: 0 | AA39: 0 | AB39: 0 | AC39: 0 | AD39: 0 | AE39: 0 | AF39: 0 | AG39: 0 | AH39: 0 | AI39: 0 | AJ39: 0 | AK39: 0 | AL39: 0 | AM39: 0 | AN39: 0 | AO39: 0 | AP39: 0 | AQ39: 0
A40: Less Interest paid | B40: USD M | G40: =SUM(H40:AQ40) -> -1.48909556 | H40: =-H28 -> 0 | I40: 0 | J40: 0 | K40: 0 | L40: -0.2868547109 | M40: -0.2635452818 | N40: -0.2392030049 | O40: -0.2113280502 | P40: -0.1408444605 | Q40: -0.1177735191 | R40: -0.09527602506 | S40: -0.07104852329 | T40: -0.04328789111 | U40: -0.0199340929 | V40: 0 | W40: 0 | X40: 0 | Y40: 0 | Z40: 0 | AA40: 0 | AB40: 0 | AC40: 0 | AD40: 0 | AE40: 0 | AF40: 0 | AG40: 0 | AH40: 0 | AI40: 0 | AJ40: 0 | AK40: 0 | AL40: 0 | AM40: 0 | AN40: 0 | AO40: 0 | AP40: 0 | AQ40: 0
A41: Cash to repay principal | B41: USD M | G41: =SUM(H41:AQ41) -> 26.36160444 | H41: =SUM(H39:H40) -> 0 | I41: =SUM(I39:I40) -> 0 | J41: 0 | K41: 0 | L41: 2.450095289 | M41: 2.476754718 | N41: 2.517176995 | O41: 2.56079695 | P41: 2.64568554 | Q41: 2.686511481 | R41: 2.722408975 | S41: 2.765396477 | T41: 2.806712109 | U41: 2.730065907 | V41: 0 | W41: 0 | X41: 0 | Y41: 0 | Z41: 0 | AA41: 0 | AB41: 0 | AC41: 0 | AD41: 0 | AE41: 0 | AF41: 0 | AG41: 0 | AH41: 0 | AI41: 0 | AJ41: 0 | AK41: 0 | AL41: 0 | AM41: 0 | AN41: 0 | AO41: 0 | AP41: 0 | AQ41: 0
A42: Principal repayment | B42: USD M | G42: =SUM(H42:AQ42) -> 17.07803777 | H42: =MIN(H41,H36) -> 0 | I42: =MIN(I41,I36) -> 0 | J42: 0 | K42: 0 | L42: 1.537778622 | M42: 1.563321385 | N42: 1.598383662 | O42: 1.636755283 | P42: 1.716842206 | Q42: 1.751749814 | R42: 1.783180642 | S42: 1.81991481 | T42: 1.856712109 | U42: 1.81339924 | V42: 0 | W42: 0 | X42: 0 | Y42: 0 | Z42: 0 | AA42: 0 | AB42: 0 | AC42: 0 | AD42: 0 | AE42: 0 | AF42: 0 | AG42: 0 | AH42: 0 | AI42: 0 | AJ42: 0 | AK42: 0 | AL42: 0 | AM42: 0 | AN42: 0 | AO42: 0 | AP42: 0 | AQ42: 0
A43: Debt balance b/f | B43: USD M | H43: =H20 * H31 -> 0 | I43: 0 | J43: 0 | K43: 0 | L43: 16.81729 | M43: 15.27951138 | N43: 13.71618999 | O43: 12.11780633 | P43: 10.48105105 | Q43: 8.764208841 | R43: 7.012459027 | S43: 5.229278386 | T43: 3.409363576 | U43: 1.552651467 | V43: 0 | W43: 0 | X43: 0 | Y43: 0 | Z43: 0 | AA43: 0 | AB43: 0 | AC43: 0 | AD43: 0 | AE43: 0 | AF43: 0 | AG43: 0 | AH43: 0 | AI43: 0 | AJ43: 0 | AK43: 0 | AL43: 0 | AM43: 0 | AN43: 0 | AO43: 0 | AP43: 0 | AQ43: 0
A44: Repayment restricted to balance | B44: USD M | G44: =SUM(H44:AQ44) -> 16.81729 | H44: =MIN(H42,H43) -> 0 | I44: =MIN(I42,I43) -> 0 | J44: 0 | K44: 0 | L44: 1.537778622 | M44: 1.563321385 | N44: 1.598383662 | O44: 1.636755283 | P44: 1.716842206 | Q44: 1.751749814 | R44: 1.783180642 | S44: 1.81991481 | T44: 1.856712109 | U44: 1.552651467 | V44: 0 | W44: 0 | X44: 0 | Y44: 0 | Z44: 0 | AA44: 0 | AB44: 0 | AC44: 0 | AD44: 0 | AE44: 0 | AF44: 0 | AG44: 0 | AH44: 0 | AI44: 0 | AJ44: 0 | AK44: 0 | AL44: 0 | AM44: 0 | AN44: 0 | AO44: 0 | AP44: 0 | AQ44: 0
A46: Debt service coverage ratio
A47: Interest | B47: USD M | G47: =SUM(H47:AQ47) -> 1.48909556 | H47: =H28 -> 0 | I47: 0 | J47: 0 | K47: 0 | L47: 0.2868547109 | M47: 0.2635452818 | N47: 0.2392030049 | O47: 0.2113280502 | P47: 0.1408444605 | Q47: 0.1177735191 | R47: 0.09527602506 | S47: 0.07104852329 | T47: 0.04328789111 | U47: 0.0199340929 | V47: 0 | W47: 0 | X47: 0 | Y47: 0 | Z47: 0 | AA47: 0 | AB47: 0 | AC47: 0 | AD47: 0 | AE47: 0 | AF47: 0 | AG47: 0 | AH47: 0 | AI47: 0 | AJ47: 0 | AK47: 0 | AL47: 0 | AM47: 0 | AN47: 0 | AO47: 0 | AP47: 0 | AQ47: 0
A48: Principal repayment | B48: USD M | G48: =SUM(H48:AQ48) -> 16.81729 | H48: =H44 -> 0 | I48: 0 | J48: 0 | K48: 0 | L48: =L44 -> 1.537778622 | M48: =M44 -> 1.563321385 | N48: 1.598383662 | O48: 1.636755283 | P48: 1.716842206 | Q48: 1.751749814 | R48: 1.783180642 | S48: 1.81991481 | T48: 1.856712109 | U48: 1.552651467 | V48: 0 | W48: 0 | X48: 0 | Y48: 0 | Z48: 0 | AA48: 0 | AB48: 0 | AC48: 0 | AD48: 0 | AE48: 0 | AF48: 0 | AG48: 0 | AH48: 0 | AI48: 0 | AJ48: 0 | AK48: 0 | AL48: 0 | AM48: 0 | AN48: 0 | AO48: 0 | AP48: 0 | AQ48: 0
A49: Total | B49: USD M | G49: =SUM(H49:AQ49) -> 18.30638556 | H49: =SUM(H47:H48) -> 0 | I49: =SUM(I47:I48) -> 0 | J49: 0 | K49: 0 | L49: 1.824633333 | M49: 1.826866667 | N49: 1.837586667 | O49: 1.848083333 | P49: 1.857686667 | Q49: 1.869523333 | R49: 1.878456667 | S49: 1.890963333 | T49: 1.9 | U49: 1.57258556 | V49: 0 | W49: 0 | X49: 0 | Y49: 0 | Z49: 0 | AA49: 0 | AB49: 0 | AC49: 0 | AD49: 0 | AE49: 0 | AF49: 0 | AG49: 0 | AH49: 0 | AI49: 0 | AJ49: 0 | AK49: 0 | AL49: 0 | AM49: 0 | AN49: 0 | AO49: 0 | AP49: 0 | AQ49: 0
C50: Min | D50: Max
A51: DSCR | B51: x | C51: =MIN(IF(H51:AQ51<>0,H51:AQ51)) -> 1.5 | D51: =MAX(IF(H51:AQ51<>0,H51:AQ51)) -> 1.748712484 | H51: =IF(H31=0,0,H39/H49) -> 0 | I51: 0 | J51: 0 | K51: 0 | L51: 1.5 | M51: 1.5 | N51: 1.5 | O51: 1.5 | P51: 1.5 | Q51: 1.5 | R51: 1.5 | S51: 1.5 | T51: 1.5 | U51: 1.748712484 | V51: 0 | W51: 0 | X51: 0 | Y51: 0 | Z51: 0 | AA51: 0 | AB51: 0 | AC51: 0 | AD51: 0 | AE51: 0 | AF51: 0 | AG51: 0 | AH51: 0 | AI51: 0 | AJ51: 0 | AK51: 0 | AL51: 0 | AM51: 0 | AN51: 0 | AO51: 0 | AP51: 0 | AQ51: 0

Sheet SMART Campus

Sheet Contacts
